[Event "Live Chess"]
[Site "Chess.com"]
[Date "2024.06.01"]
[Round "-"]
[White "TC2304"]
[Black "vincents82"]
[Result "1-0"]
[WhiteElo "2351"]
[BlackElo "2146"]
[TimeControl "300"]
[EndTime "11:03:20 PDT"]
[Termination "TC2304 won by resignation"]

1. e4 {[%clk 0:04:56]} 1... d5 {[%clk 0:04:52.5]} 2. Nc3 {[%clk 0:04:54]} 2...
dxe4 {[%clk 0:04:51.4]} 3. Nxe4 {[%clk 0:04:52.8]} 3... Nd7 {[%clk 0:04:50.4]}
4. d4 {[%clk 0:04:46.9]} 4... Ngf6 {[%clk 0:04:49.3]} 5. Nxf6+ {[%clk
0:04:43.1]} 5... Nxf6 {[%clk 0:04:48.2]} 6. Nf3 {[%clk 0:04:42.8]} 6... e6
{[%clk 0:04:47.6]} 7. c3 {[%clk 0:04:39.7]} 7... c5 {[%clk 0:04:42.9]} 8. Ne5
{[%clk 0:04:39]} 8... Be7 {[%clk 0:04:41.4]} 9. Bb5+ {[%clk 0:04:37.8]} 9... Bd7
{[%clk 0:04:40.5]} 10. Nxd7 {[%clk 0:04:26.3]} 10... Nxd7 {[%clk 0:04:39.5]} 11.
Qa4 {[%clk 0:04:25.7]} 11... a6 {[%clk 0:04:29.6]} 12. Bxd7+ {[%clk 0:04:16.9]}
12... Qxd7 {[%clk 0:04:28.4]} 13. Qxd7+ {[%clk 0:04:15.4]} 13... Kxd7 {[%clk
0:04:27.4]} 14. Be3 {[%clk 0:04:11.5]} 14... cxd4 {[%clk 0:04:24.7]} 15. Bxd4
{[%clk 0:04:09.7]} 15... f6 {[%clk 0:04:19.3]} 16. O-O-O {[%clk 0:04:08.6]}
16... Kc6 {[%clk 0:04:18.1]} 17. b4 {[%clk 0:04:06.9]} 17... e5 {[%clk
0:04:17.1]} 18. Be3 {[%clk 0:04:05.2]} 18... b5 {[%clk 0:04:16]} 19. Kc2 {[%clk
0:04:03.3]} 19... Rad8 {[%clk 0:04:14.6]} 20. Kb3 {[%clk 0:04:02.7]} 20... f5
{[%clk 0:04:10.4]} 21. f3 {[%clk 0:03:57.7]} 21... Rxd1 {[%clk 0:04:08.9]} 22.
Rxd1 {[%clk 0:03:56.4]} 22... Rd8 {[%clk 0:04:08.6]} 23. Rxd8 {[%clk 0:03:54.5]}
23... Bxd8 {[%clk 0:04:07.7]} 24. a4 {[%clk 0:03:49.2]} 24... h6 {[%clk
0:04:01.3]} 25. Bc5 {[%clk 0:03:47.4]} 25... e4 {[%clk 0:03:57.4]} 26. fxe4
{[%clk 0:03:45]} 26... fxe4 {[%clk 0:03:56.5]} 27. axb5+ {[%clk 0:03:41.8]}
27... axb5 {[%clk 0:03:55.6]} 28. c4 {[%clk 0:03:35.4]} 28... Bg5 {[%clk
0:03:48.9]} 29. cxb5+ {[%clk 0:03:21.7]} 29... Kxb5 {[%clk 0:03:48]} 30. Kc3
{[%clk 0:03:21.5]} 30... Bf6+ {[%clk 0:03:32.8]} 31. Bd4 {[%clk 0:03:14.6]}
31... Be7 {[%clk 0:03:21.9]} 32. Bxg7 {[%clk 0:03:09.4]} 32... h5 {[%clk
0:03:12.1]} 33. Kd4 {[%clk 0:03:03.7]} 33... Bxb4 {[%clk 0:03:07.3]} 34. Kxe4
{[%clk 0:03:01.1]} 34... Kc6 {[%clk 0:03:06.8]} 35. Kf5 {[%clk 0:02:59.3]} 35...
Be7 {[%clk 0:02:59.6]} 36. Bf6 {[%clk 0:02:54.6]} 36... Bd6 {[%clk 0:02:56.8]}
37. h3 {[%clk 0:02:53.9]} 37... Kd7 {[%clk 0:02:55.8]} 38. Kg5 {[%clk
0:02:52.6]} 38... Ke6 {[%clk 0:02:55.2]} 39. Bc3 {[%clk 0:02:47.4]} 39... Be7+
{[%clk 0:02:50.6]} 40. Kxh5 {[%clk 0:02:46.4]} 40... Kf5 {[%clk 0:02:50.1]} 41.
g4+ {[%clk 0:02:45.1]} 41... Ke6 {[%clk 0:02:49.4]} 42. Kg6 {[%clk 0:02:39.4]}
1-0

[Event "Live Chess"]
[Site "Chess.com"]
[Date "2024.06.01"]
[Round "-"]
[White "RuslanChessN"]
[Black "Cruiseylee78"]
[Result "0-1"]
[WhiteElo "1915"]
[BlackElo "1690"]
[TimeControl "300"]
[EndTime "11:03:22 PDT"]
[Termination "Cruiseylee78 won on time"]

1. d4 {[%clk 0:04:55.4]} 1... d6 {[%clk 0:04:59.4]} 2. c4 {[%clk 0:04:54.5]}
2... Nd7 {[%clk 0:04:58.8]} 3. Nc3 {[%clk 0:04:53.7]} 3... e5 {[%clk 0:04:58.5]}
4. e3 {[%clk 0:04:45.3]} 4... h6 {[%clk 0:04:57.1]} 5. f4 {[%clk 0:04:44]} 5...
Ngf6 {[%clk 0:04:50.9]} 6. Qc2 {[%clk 0:04:39.3]} 6... Be7 {[%clk 0:04:50.1]} 7.
Nf3 {[%clk 0:04:37.2]} 7... c6 {[%clk 0:04:43.2]} 8. h3 {[%clk 0:04:31.3]} 8...
Qc7 {[%clk 0:04:41.3]} 9. e4 {[%clk 0:04:26.7]} 9... exd4 {[%clk 0:04:27.1]} 10.
Nxd4 {[%clk 0:04:22.9]} 10... Nf8 {[%clk 0:04:15.1]} 11. Be2 {[%clk 0:04:20.6]}
11... Qb6 {[%clk 0:04:11.1]} 12. Be3 {[%clk 0:04:17.8]} 12... c5 {[%clk
0:04:10]} 13. Nf3 {[%clk 0:04:14]} 13... Be6 {[%clk 0:04:03.5]} 14. O-O {[%clk
0:04:10.5]} 14... Rg8 {[%clk 0:04:01.1]} 15. Rad1 {[%clk 0:04:06.6]} 15... N6d7
{[%clk 0:03:59.8]} 16. a3 {[%clk 0:03:56.4]} 16... g5 {[%clk 0:03:58.4]} 17. b4
{[%clk 0:03:50.2]} 17... gxf4 {[%clk 0:03:52.6]} 18. Bf2 {[%clk 0:03:31.7]}
18... Bxh3 {[%clk 0:03:33.6]} 19. Nd5 {[%clk 0:03:22.8]} 19... Rxg2+ {[%clk
0:03:30.5]} 20. Kh1 {[%clk 0:03:20.9]} 20... Qd8 {[%clk 0:03:23.8]} 21. e5
{[%clk 0:03:07.4]} 21... dxe5 {[%clk 0:03:19.6]} 22. Qe4 {[%clk 0:02:38.5]}
22... Nf6 {[%clk 0:03:14.6]} 23. Nxf6+ {[%clk 0:02:34.5]} 23... Bxf6 {[%clk
0:03:08.9]} 24. Rxd8+ {[%clk 0:02:31.1]} 24... Rxd8 {[%clk 0:03:08.8]} 25. Nxe5
{[%clk 0:02:26.2]} 25... Ne6 {[%clk 0:02:53.6]} 26. Bh5 {[%clk 0:02:12.2]} 26...
Bxe5 {[%clk 0:01:51.3]} 27. Qxe5 {[%clk 0:02:08.6]} 27... Rg5 {[%clk 0:01:47.3]}
28. Qh8+ {[%clk 0:00:50.5]} 28... Ke7 {[%clk 0:01:23]} 29. Bxc5+ {[%clk
0:00:45.8]} 29... Rxc5 {[%clk 0:01:18.7]} 30. Qxh6 {[%clk 0:00:33.1]} 30... Rxh5
{[%clk 0:01:03.3]} 31. Qxh5 {[%clk 0:00:26]} 31... Bxf1 {[%clk 0:01:02.4]} 32.
Qh4+ {[%clk 0:00:18.7]} 32... Ke8 {[%clk 0:00:57.4]} 33. Qh8+ {[%clk 0:00:17.1]}
33... Kd7 {[%clk 0:00:52]} 34. Qe5 {[%clk 0:00:15]} 34... Bxc4 {[%clk 0:00:48]}
0-1

[Event "Live Chess"]
[Site "Chess.com"]
[Date "2024.06.01"]
[Round "-"]
[White "Brooms1989"]
[Black "Bunny55"]
[Result "1-0"]
[WhiteElo "1069"]
[BlackElo "1161"]
[TimeControl "300"]
[EndTime "11:03:33 PDT"]
[Termination "Brooms1989 won by checkmate"]

1. e4 {[%clk 0:04:44.9]} 1... c5 {[%clk 0:04:57.9]} 2. Be2 {[%clk 0:04:41.3]}
2... d6 {[%clk 0:04:56]} 3. f4 {[%clk 0:04:39.6]} 3... g6 {[%clk 0:04:51.3]} 4.
Nf3 {[%clk 0:04:37.6]} 4... Bg7 {[%clk 0:04:50.1]} 5. d3 {[%clk 0:04:36.5]} 5...
e6 {[%clk 0:04:49.2]} 6. O-O {[%clk 0:04:35.5]} 6... Ne7 {[%clk 0:04:42.8]} 7.
Qe1 {[%clk 0:04:33.2]} 7... O-O {[%clk 0:04:41.3]} 8. Be3 {[%clk 0:04:27]} 8...
f5 {[%clk 0:04:39.5]} 9. Qh4 {[%clk 0:04:20.9]} 9... Nec6 {[%clk 0:04:36.3]} 10.
Qxd8 {[%clk 0:04:09.9]} 10... Rxd8 {[%clk 0:04:32.3]} 11. c3 {[%clk 0:04:06.5]}
11... Ne7 {[%clk 0:04:26.5]} 12. exf5 {[%clk 0:04:03.7]} 12... Nxf5 {[%clk
0:04:23.7]} 13. Bf2 {[%clk 0:04:02.7]} 13... Nc6 {[%clk 0:04:21.2]} 14. Nbd2
{[%clk 0:03:59]} 14... Bd7 {[%clk 0:04:18]} 15. Ne4 {[%clk 0:03:54.8]} 15... Be8
{[%clk 0:04:07.1]} 16. Rad1 {[%clk 0:03:42.3]} 16... Bf8 {[%clk 0:03:58.7]} 17.
g4 {[%clk 0:03:40.4]} 17... Nh6 {[%clk 0:03:51.5]} 18. g5 {[%clk 0:03:36.9]}
18... Nf5 {[%clk 0:03:49.8]} 19. h4 {[%clk 0:03:30.7]} 19... d5 {[%clk
0:03:40.3]} 20. Nxc5 {[%clk 0:03:22.4]} 20... Bxc5 {[%clk 0:03:35.8]} 21. Bxc5
{[%clk 0:03:22.3]} 21... d4 {[%clk 0:03:31.4]} 22. cxd4 {[%clk 0:03:16.2]} 22...
Ncxd4 {[%clk 0:03:28]} 23. Nxd4 {[%clk 0:03:14.3]} 23... Nxd4 {[%clk 0:03:26.8]}
24. Bxd4 {[%clk 0:03:12.9]} 24... Rxd4 {[%clk 0:03:25.3]} 25. Rc1 {[%clk
0:03:03.4]} 25... Bc6 {[%clk 0:03:20.1]} 26. Rfd1 {[%clk 0:02:54.4]} 26... Rxf4
{[%clk 0:03:13.8]} 27. Kh2 {[%clk 0:02:35.8]} 27... Rxh4+ {[%clk 0:03:11.2]} 28.
Kg3 {[%clk 0:02:35.4]} 28... Rd4 {[%clk 0:03:02.4]} 29. Rf1 {[%clk 0:02:32.9]}
29... Kg7 {[%clk 0:02:55.7]} 30. Rf6 {[%clk 0:02:24.1]} 30... Bd5 {[%clk
0:02:47.2]} 31. Rc7+ {[%clk 0:02:19.1]} 31... Kg8 {[%clk 0:02:39.7]} 32. Rff7
{[%clk 0:02:11]} 32... e5 {[%clk 0:02:35.8]} 33. Rg7+ {[%clk 0:02:07.1]} 33...
Kf8 {[%clk 0:02:34.3]} 34. Rxh7 {[%clk 0:02:04.7]} 34... Re8 {[%clk 0:02:25.7]}
35. Bf3 {[%clk 0:01:59.5]} 35... e4 {[%clk 0:02:18.4]} 36. Bxe4 {[%clk 0:01:54]}
36... Bxe4 {[%clk 0:02:14.7]} 37. Rh8# {[%clk 0:01:51.7]} 1-0

[Event "Live Chess"]
[Site "Chess.com"]
[Date "2024.06.01"]
[Round "-"]
[White "rakibsachchu"]
[Black "LL220284LL"]
[Result "0-1"]
[WhiteElo "1579"]
[BlackElo "2583"]
[TimeControl "300"]
[EndTime "11:03:44 PDT"]
[Termination "LL220284LL won by resignation"]

1. e4 {[%clk 0:04:56.6]} 1... c6 {[%clk 0:04:57.7]} 2. d4 {[%clk 0:04:54.6]}
2... g6 {[%clk 0:04:56.5]} 3. Nc3 {[%clk 0:04:52.3]} 3... Bg7 {[%clk 0:04:56]}
4. f4 {[%clk 0:04:50.6]} 4... d6 {[%clk 0:04:54.5]} 5. Nf3 {[%clk 0:04:48]} 5...
Nf6 {[%clk 0:04:54.1]} 6. e5 {[%clk 0:04:45.9]} 6... Nd5 {[%clk 0:04:52.2]} 7.
Ne4 {[%clk 0:04:40.2]} 7... Bf5 {[%clk 0:04:49.9]} 8. Ng3 {[%clk 0:04:37.2]}
8... Bg4 {[%clk 0:04:48.1]} 9. h3 {[%clk 0:04:33.7]} 9... Bxf3 {[%clk
0:04:46.7]} 10. Qxf3 {[%clk 0:04:32.2]} 10... Qb6 {[%clk 0:04:45.5]} 11. c3
{[%clk 0:04:24.9]} 11... Nd7 {[%clk 0:04:40.5]} 12. f5 {[%clk 0:04:22]} 12...
dxe5 {[%clk 0:04:36.8]} 13. dxe5 {[%clk 0:03:55.9]} 13... Nxe5 {[%clk
0:04:36.7]} 14. Qe4 {[%clk 0:03:54.4]} 14... O-O {[%clk 0:04:29.2]} 15. Bc4
{[%clk 0:03:27.7]} 15... Nxc4 {[%clk 0:04:26.3]} 16. Qxc4 {[%clk 0:03:25.3]}
16... Rad8 {[%clk 0:04:24.5]} 17. fxg6 {[%clk 0:02:55.3]} 17... hxg6 {[%clk
0:04:21.7]} 18. b4 {[%clk 0:02:45.6]} 18... Nxc3 {[%clk 0:04:18.9]} 0-1

[Event "Live Chess"]
[Site "Chess.com"]
[Date "2024.06.01"]
[Round "-"]
[White "ossie57"]
[Black "Colm_Buckley"]
[Result "1/2-1/2"]
[WhiteElo "1641"]
[BlackElo "1787"]
[TimeControl "300"]
[EndTime "11:03:50 PDT"]
[Termination "Game drawn by stalemate"]

1. d4 {[%clk 0:04:56.6]} 1... e6 {[%clk 0:04:58]} 2. Nc3 {[%clk 0:04:55.6]} 2...
Nf6 {[%clk 0:04:53.8]} 3. Bf4 {[%clk 0:04:54.6]} 3... a6 {[%clk 0:04:45.5]} 4.
e4 {[%clk 0:04:51.4]} 4... d5 {[%clk 0:04:42.4]} 5. e5 {[%clk 0:04:50.3]} 5...
Nfd7 {[%clk 0:04:41.2]} 6. Qf3 {[%clk 0:04:42.5]} 6... c5 {[%clk 0:04:37.2]} 7.
O-O-O {[%clk 0:04:39.5]} 7... Nc6 {[%clk 0:04:34.5]} 8. dxc5 {[%clk 0:04:19.5]}
8... Ncxe5 {[%clk 0:04:30.7]} 9. Bxe5 {[%clk 0:04:14.7]} 9... Nxe5 {[%clk
0:04:29.8]} 10. Qg3 {[%clk 0:04:10.8]} 10... Ng6 {[%clk 0:04:20.1]} 11. h4
{[%clk 0:04:08.1]} 11... Qf6 {[%clk 0:04:01.3]} 12. Nf3 {[%clk 0:03:57.6]} 12...
Qf4+ {[%clk 0:03:53.1]} 13. Qxf4 {[%clk 0:03:57]} 13... Nxf4 {[%clk 0:03:52.1]}
14. Na4 {[%clk 0:03:56.1]} 14... Bd7 {[%clk 0:03:44.4]} 15. Nb6 {[%clk
0:03:54.7]} 15... Rb8 {[%clk 0:03:43.3]} 16. g3 {[%clk 0:03:49.3]} 16... Ng6
{[%clk 0:03:34.8]} 17. b4 {[%clk 0:03:35]} 17... Be7 {[%clk 0:03:20.1]} 18. c4
{[%clk 0:03:34]} 18... Bc6 {[%clk 0:03:13.1]} 19. h5 {[%clk 0:03:30.6]} 19...
Nf8 {[%clk 0:03:06.5]} 20. cxd5 {[%clk 0:02:57.6]} 20... exd5 {[%clk 0:03:04.3]}
21. Nd4 {[%clk 0:02:56.4]} 21... a5 {[%clk 0:02:51.5]} 22. a3 {[%clk 0:02:38.4]}
22... axb4 {[%clk 0:02:50.4]} 23. axb4 {[%clk 0:02:37.6]} 23... Nd7 {[%clk
0:02:46.1]} 24. b5 {[%clk 0:02:20.1]} 24... Bxc5 {[%clk 0:02:23.2]} 25. bxc6
{[%clk 0:02:19]} 25... Nxb6 {[%clk 0:02:20.6]} 26. Re1+ {[%clk 0:02:16.4]} 26...
Kd8 {[%clk 0:02:14.9]} 27. Nb5 {[%clk 0:02:10.2]} 27... bxc6 {[%clk 0:02:10.9]}
28. Nc3 {[%clk 0:02:03.7]} 28... Bxf2 {[%clk 0:02:06.1]} 29. Re2 {[%clk
0:02:02.7]} 29... Bxg3 {[%clk 0:02:04.9]} 30. Rg1 {[%clk 0:02:01.2]} 30... Bf4+
{[%clk 0:02:03.8]} 31. Kc2 {[%clk 0:02:00]} 31... Nc4 {[%clk 0:01:59.4]} 32.
Rxg7 {[%clk 0:01:57]} 32... Rb2+ {[%clk 0:01:57.5]} 33. Kd3 {[%clk 0:01:53.8]}
33... Rxe2 {[%clk 0:01:51.8]} 34. Nxe2 {[%clk 0:01:50.4]} 34... Ne5+ {[%clk
0:01:47.9]} 35. Kc2 {[%clk 0:01:42.3]} 35... Bh6 {[%clk 0:01:43.7]} 36. Rg3
{[%clk 0:01:38.2]} 36... Ke7 {[%clk 0:01:40.5]} 37. Nd4 {[%clk 0:01:27.5]} 37...
Kf6 {[%clk 0:01:37.1]} 38. Be2 {[%clk 0:01:14.7]} 38... c5 {[%clk 0:01:35.1]}
39. Nb5 {[%clk 0:01:10.1]} 39... Rb8 {[%clk 0:01:24]} 40. Rg1 {[%clk 0:01:02.2]}
40... c4 {[%clk 0:01:17.9]} 41. Rf1+ {[%clk 0:01:00.4]} 41... Ke7 {[%clk
0:01:15.4]} 42. Nd4 {[%clk 0:00:56.9]} 42... Bg5 {[%clk 0:01:05.5]} 43. Rf5
{[%clk 0:00:48.9]} 43... f6 {[%clk 0:01:02.6]} 44. Rxe5+ {[%clk 0:00:46.1]}
44... fxe5 {[%clk 0:01:01.3]} 45. Nc6+ {[%clk 0:00:45.4]} 45... Kd6 {[%clk
0:00:59.1]} 46. Nxb8 {[%clk 0:00:45.3]} 46... Kc7 {[%clk 0:00:52.1]} 47. Na6+
{[%clk 0:00:44.4]} 47... Kb6 {[%clk 0:00:51.7]} 48. Nb4 {[%clk 0:00:44]} 48...
Kc5 {[%clk 0:00:50.1]} 49. Na2 {[%clk 0:00:42.3]} 49... d4 {[%clk 0:00:48.1]}
50. Nc1 {[%clk 0:00:41.3]} 50... d3+ {[%clk 0:00:47.1]} 51. Nxd3+ {[%clk
0:00:39]} 51... cxd3+ {[%clk 0:00:46.1]} 52. Bxd3 {[%clk 0:00:38.5]} 52... h6
{[%clk 0:00:44.7]} 53. Bg6 {[%clk 0:00:36.6]} 53... Kd4 {[%clk 0:00:43.6]} 54.
Kd1 {[%clk 0:00:31.8]} 54... Ke3 {[%clk 0:00:39.1]} 55. Ke1 {[%clk 0:00:21.3]}
55... Bf4 {[%clk 0:00:37.8]} 56. Kf1 {[%clk 0:00:19.8]} 56... Bg3 {[%clk
0:00:34.7]} 57. Kg1 {[%clk 0:00:17.8]} 57... Be1 {[%clk 0:00:31.8]} 58. Kh1
{[%clk 0:00:17.3]} 58... e4 {[%clk 0:00:29.8]} 59. Kg1 {[%clk 0:00:16.7]} 59...
Kf3 {[%clk 0:00:28.6]} 60. Bxe4+ {[%clk 0:00:15.7]} 60... Kxe4 {[%clk 0:00:27]}
61. Kh1 {[%clk 0:00:15.2]} 61... Kf3 {[%clk 0:00:25.6]} 62. Kh2 {[%clk
0:00:14.5]} 62... Kg4 {[%clk 0:00:21.8]} 63. Kh1 {[%clk 0:00:14]} 63... Bc3
{[%clk 0:00:20.8]} 64. Kh2 {[%clk 0:00:13.8]} 64... Be5+ {[%clk 0:00:19.8]} 65.
Kh1 {[%clk 0:00:13.6]} 65... Kxh5 {[%clk 0:00:18.7]} 66. Kg2 {[%clk 0:00:13.2]}
66... Kh4 {[%clk 0:00:17.7]} 67. Kh1 {[%clk 0:00:12.6]} 67... Kh3 {[%clk
0:00:14.6]} 68. Kg1 {[%clk 0:00:12.2]} 68... Bf6 {[%clk 0:00:11.1]} 69. Kh1
{[%clk 0:00:12.1]} 69... h5 {[%clk 0:00:09.4]} 70. Kg1 {[%clk 0:00:11.7]} 70...
h4 {[%clk 0:00:07.6]} 71. Kh1 {[%clk 0:00:11.6]} 71... Kg3 {[%clk 0:00:06.3]}
72. Kg1 {[%clk 0:00:11.5]} 72... Kf3 {[%clk 0:00:05.6]} 73. Kh1 {[%clk
0:00:11.4]} 73... Be5 {[%clk 0:00:03.7]} 74. Kg1 {[%clk 0:00:11]} 74... h3
{[%clk 0:00:03.4]} 75. Kh1 {[%clk 0:00:10.9]} 75... h2 {[%clk 0:00:03]} 1/2-1/2

[Event "Live Chess"]
[Site "Chess.com"]
[Date "2024.06.01"]
[Round "-"]
[White "Dhaydon19"]
[Black "SavagePawn7"]
[Result "1-0"]
[WhiteElo "2677"]
[BlackElo "684"]
[TimeControl "300"]
[EndTime "11:04:01 PDT"]
[Termination "Dhaydon19 won by checkmate"]

1. d4 {[%clk 0:04:58.1]} 1... e5 {[%clk 0:04:57.2]} 2. dxe5 {[%clk 0:04:56.6]}
2... d6 {[%clk 0:04:55.9]} 3. Nf3 {[%clk 0:04:56.5]} 3... dxe5 {[%clk 0:04:54]}
4. Qxd8+ {[%clk 0:04:54.6]} 4... Kxd8 {[%clk 0:04:51.8]} 5. Nxe5 {[%clk
0:04:54.4]} 5... Be6 {[%clk 0:04:39.7]} 6. e3 {[%clk 0:04:52.1]} 6... Bd6 {[%clk
0:04:35.5]} 7. Nf3 {[%clk 0:04:50.8]} 7... Nc6 {[%clk 0:04:33.1]} 8. c3 {[%clk
0:04:47.8]} 8... Nf6 {[%clk 0:04:31.3]} 9. Be2 {[%clk 0:04:44.8]} 9... Ne5
{[%clk 0:04:16.8]} 10. Nxe5 {[%clk 0:04:42.5]} 10... Bxe5 {[%clk 0:04:15.6]} 11.
Nd2 {[%clk 0:04:42.3]} 11... Ke7 {[%clk 0:04:05]} 12. Nf3 {[%clk 0:04:41.2]}
12... Bd6 {[%clk 0:04:00.9]} 13. Nd4 {[%clk 0:04:40.2]} 13... Rad8 {[%clk
0:03:56.1]} 14. Nxe6 {[%clk 0:04:39.4]} 14... Kxe6 {[%clk 0:03:54.6]} 15. O-O
{[%clk 0:04:39.1]} 15... Ne4 {[%clk 0:03:43.5]} 16. f3 {[%clk 0:04:37.1]} 16...
Nf6 {[%clk 0:03:38.3]} 17. e4 {[%clk 0:04:34.9]} 17... h5 {[%clk 0:03:32.5]} 18.
Be3 {[%clk 0:04:33.1]} 18... Nd7 {[%clk 0:03:18.4]} 19. Bc4+ {[%clk 0:04:28.5]}
19... Ke7 {[%clk 0:03:16.5]} 20. b4 {[%clk 0:04:23.9]} 20... f6 {[%clk
0:03:11.7]} 21. Rad1 {[%clk 0:04:19.7]} 21... g5 {[%clk 0:03:06.3]} 22. Bb3
{[%clk 0:04:15.6]} 22... g4 {[%clk 0:03:04.1]} 23. f4 {[%clk 0:04:13.2]} 23...
Rh7 {[%clk 0:02:45]} 24. a3 {[%clk 0:04:10.1]} 24... Rg7 {[%clk 0:02:41.4]} 25.
c4 {[%clk 0:04:05.5]} 25... h4 {[%clk 0:02:35.8]} 26. c5 {[%clk 0:04:01.9]}
26... Bxc5 {[%clk 0:01:46.4]} 27. bxc5 {[%clk 0:03:59.2]} 27... Nxc5 {[%clk
0:01:45.1]} 28. Bxc5+ {[%clk 0:03:57.5]} 28... Ke8 {[%clk 0:01:30.3]} 29. Rxd8+
{[%clk 0:03:55.9]} 29... Kxd8 {[%clk 0:01:28.7]} 30. Rd1+ {[%clk 0:03:55.6]}
30... Kc8 {[%clk 0:01:22.8]} 31. Be6+ {[%clk 0:03:53.8]} 31... Kb8 {[%clk
0:01:12.8]} 32. Rd8# {[%clk 0:03:47.6]} 1-0

[Event "Live Chess"]
[Site "Chess.com"]
[Date "2024.06.01"]
[Round "-"]
[White "WilliamofOrange16th"]
[Black "MellowAesthetic"]
[Result "0-1"]
[WhiteElo "1943"]
[BlackElo "2065"]
[TimeControl "300"]
[EndTime "11:04:19 PDT"]
[Termination "MellowAesthetic won by resignation"]

1. b3 {[%clk 0:04:55.8]} 1... e5 {[%clk 0:04:58.7]} 2. Bb2 {[%clk 0:04:55.1]}
2... Nc6 {[%clk 0:04:58.2]} 3. e3 {[%clk 0:04:54.5]} 3... Nf6 {[%clk 0:04:56.9]}
4. Bb5 {[%clk 0:04:52]} 4... Bd6 {[%clk 0:04:56.4]} 5. Na3 {[%clk 0:04:49.6]}
5... Be7 {[%clk 0:04:54.9]} 6. Nf3 {[%clk 0:04:40.4]} 6... e4 {[%clk 0:04:50]}
7. Nd4 {[%clk 0:04:32.6]} 7... Nxd4 {[%clk 0:04:46.4]} 8. Bxd4 {[%clk
0:04:30.9]} 8... Bxa3 {[%clk 0:04:45]} 9. f3 {[%clk 0:04:13.3]} 9... c6 {[%clk
0:04:41.9]} 10. Be2 {[%clk 0:04:10.8]} 10... d5 {[%clk 0:04:40]} 11. fxe4 {[%clk
0:04:08.9]} 11... Nxe4 {[%clk 0:04:27.7]} 12. O-O {[%clk 0:04:08]} 12... O-O
{[%clk 0:04:23.5]} 13. d3 {[%clk 0:04:05.3]} 13... Ng5 {[%clk 0:04:11.3]} 14. h4
{[%clk 0:04:02.2]} 14... Ne6 {[%clk 0:04:09.6]} 15. Bc3 {[%clk 0:04:00.4]} 15...
Qxh4 {[%clk 0:04:05.9]} 16. Bg4 {[%clk 0:03:59.3]} 16... Bd6 {[%clk 0:04:01.2]}
0-1

[Event "Live Chess"]
[Site "Chess.com"]
[Date "2024.06.01"]
[Round "-"]
[White "ProfPoisson"]
[Black "Mangoalo"]
[Result "1-0"]
[WhiteElo "1239"]
[BlackElo "1009"]
[TimeControl "300"]
[EndTime "11:04:33 PDT"]
[Termination "ProfPoisson won by checkmate"]

1. e4 {[%clk 0:04:56.2]} 1... c6 {[%clk 0:04:58.5]} 2. d4 {[%clk 0:04:53.6]}
2... d5 {[%clk 0:04:58.4]} 3. exd5 {[%clk 0:04:52.1]} 3... cxd5 {[%clk
0:04:29.7]} 4. c4 {[%clk 0:04:50.2]} 4... dxc4 {[%clk 0:04:10]} 5. Bxc4 {[%clk
0:04:46.2]} 5... Nf6 {[%clk 0:04:09.9]} 6. Qb3 {[%clk 0:04:43.9]} 6... e6 {[%clk
0:03:51.9]} 7. Nf3 {[%clk 0:04:40.5]} 7... b6 {[%clk 0:03:46.5]} 8. O-O {[%clk
0:04:30.9]} 8... Nc6 {[%clk 0:03:42.9]} 9. d5 {[%clk 0:04:28.8]} 9... Nxd5
{[%clk 0:03:40.6]} 10. Re1 {[%clk 0:04:20.3]} 10... Bb4 {[%clk 0:03:23]} 11.
Bxd5 {[%clk 0:04:10.4]} 11... Bxe1 {[%clk 0:03:18.8]} 12. Bxc6+ {[%clk
0:04:08.8]} 12... Bd7 {[%clk 0:03:14.8]} 13. Bxa8 {[%clk 0:04:02.7]} 13... Bxf2+
{[%clk 0:03:10.6]} 14. Kxf2 {[%clk 0:03:58.9]} 14... Qxa8 {[%clk 0:03:08.1]} 15.
Be3 {[%clk 0:03:53]} 15... Bc6 {[%clk 0:03:04.2]} 16. Nbd2 {[%clk 0:03:45.3]}
16... O-O {[%clk 0:03:01.2]} 17. Rc1 {[%clk 0:03:41.5]} 17... Bxf3 {[%clk
0:02:57.6]} 18. Nxf3 {[%clk 0:03:39]} 18... Rd8 {[%clk 0:02:54]} 19. Qc3 {[%clk
0:03:25.5]} 19... Qd5 {[%clk 0:02:47.6]} 20. Qc8 {[%clk 0:03:13.9]} 20... h6
{[%clk 0:02:40.1]} 21. Qc4 {[%clk 0:02:59.3]} 21... Qd7 {[%clk 0:02:17.8]} 22.
Ne5 {[%clk 0:02:54.5]} 22... Qe7 {[%clk 0:01:58.9]} 23. Nc6 {[%clk 0:02:41.7]}
23... Qf6+ {[%clk 0:01:55.6]} 24. Qf4 {[%clk 0:02:28.8]} 24... Qxb2+ {[%clk
0:01:47.2]} 25. Kf3 {[%clk 0:02:27.5]} 25... Rd5 {[%clk 0:01:32.4]} 26. Ne7+
{[%clk 0:02:24]} 26... Kf8 {[%clk 0:01:23.7]} 27. Nxd5 {[%clk 0:02:22.1]} 27...
exd5 {[%clk 0:01:23.6]} 28. Rc8+ {[%clk 0:02:16]} 28... Ke7 {[%clk 0:01:19.4]}
29. Qc7+ {[%clk 0:02:03.5]} 29... Kf6 {[%clk 0:01:15.8]} 30. Qf4+ {[%clk
0:01:59.3]} 30... Ke7 {[%clk 0:01:14.6]} 31. Rc7+ {[%clk 0:01:55]} 31... Ke6
{[%clk 0:01:10.1]} 32. Rc6+ {[%clk 0:01:47.5]} 32... Ke7 {[%clk 0:01:07.5]} 33.
Qd6+ {[%clk 0:01:44.4]} 33... Ke8 {[%clk 0:01:06.3]} 34. Rc8# {[%clk 0:01:42.2]}
1-0

[Event "Live Chess"]
[Site "Chess.com"]
[Date "2024.06.01"]
[Round "-"]
[White "SimonB4a"]
[Black "febray_27"]
[Result "1-0"]
[WhiteElo "2164"]
[BlackElo "1986"]
[TimeControl "300"]
[EndTime "11:04:40 PDT"]
[Termination "SimonB4a won by resignation"]

1. d4 {[%clk 0:04:57.4]} 1... Nf6 {[%clk 0:04:58.3]} 2. c4 {[%clk 0:04:56.3]}
2... g6 {[%clk 0:04:57.4]} 3. Nc3 {[%clk 0:04:55.1]} 3... Bg7 {[%clk 0:04:57]}
4. e4 {[%clk 0:04:54.1]} 4... d6 {[%clk 0:04:56.1]} 5. f4 {[%clk 0:04:53.1]}
5... O-O {[%clk 0:04:55.2]} 6. Nf3 {[%clk 0:04:52.2]} 6... Bg4 {[%clk
0:04:51.4]} 7. Be2 {[%clk 0:04:51]} 7... Nc6 {[%clk 0:04:48]} 8. d5 {[%clk
0:04:47.8]} 8... Nb4 {[%clk 0:04:45]} 9. O-O {[%clk 0:04:44.3]} 9... a5 {[%clk
0:04:37.9]} 10. a3 {[%clk 0:04:39.9]} 10... Na6 {[%clk 0:04:36.2]} 11. Be3
{[%clk 0:04:36.4]} 11... b6 {[%clk 0:04:33.9]} 12. Nd4 {[%clk 0:04:27.2]} 12...
Nc5 {[%clk 0:04:29.3]} 13. Bxg4 {[%clk 0:04:21.5]} 13... Nxg4 {[%clk 0:04:28.2]}
14. Qxg4 {[%clk 0:04:17.6]} 14... e5 {[%clk 0:04:19]} 15. dxe6 {[%clk
0:04:08.4]} 15... fxe6 {[%clk 0:04:15.3]} 16. Nxe6 {[%clk 0:03:48.8]} 16... Nxe6
{[%clk 0:04:11.3]} 17. Qxe6+ {[%clk 0:03:47.6]} 17... Kh8 {[%clk 0:04:11.2]} 18.
Rad1 {[%clk 0:03:42]} 18... Re8 {[%clk 0:04:09.3]} 19. Qh3 {[%clk 0:03:38.3]}
19... Bxc3 {[%clk 0:04:06.7]} 20. bxc3 {[%clk 0:03:36.3]} 20... Rxe4 {[%clk
0:04:06.6]} 21. f5 {[%clk 0:03:29.4]} 1-0